bitfinex-derivatives/quotes_ETHF0:USTF0_20250428
["timestamp","ask_amount","ask_price","bid_price","bid_amount"]
[1745825167157,4.68508,1807.6,1807.5,1.6179]
[1745825167454,3.2078,1807.8,1807.5,1.6179]
[1745825167648,6.4847,1807.8,1807.5,1.6179]
[1745825167848,1.10608,1807.6,1807.5,1.6179]
[1745825168945,2.77857,1807.7,1807.5,1.6179]
[1745825169142,3.579,1807.9,1807.5,1.6179]
[1745825169346,3.579,1807.9,1807.7,1.106]
[1745825169554,3.579,1807.9,1807.6,3.9932]
[1745825169555,3.579,1807.9,1807.8,2.5226]
[1745825169751,1.1059,1807.9,1807.8,2.5226]
[1745825169946,1.10602,1807.7,1807.6,0.7854]
[1745825170152,4.31374,1807.9,1807.6,0.7854]
[1745825170347,1.10596,1807.8,1807.7,1.6415]
[1745825170854,4.31372,1807.9,1807.7,1.6415]
[1745825171652,1.10596,1807.8,1807.7,1.6415]
[1745825171857,1.10596,1807.8,1807.7,42.4415]
[1745825173359,1.10612,1807.6,1807.2,5.97362]
[1745825173559,1.10612,1807.6,1807.5,1.10614]
[1745825174057,1.10612,1807.6,1807.5,2.71984]
[1745825174459,1.10612,1807.6,1807.5,43.51984]
[1745825174857,5.7568,1807.7,1807.6,1.10608]
[1745825175058,5.7568,1807.7,1807.6,2.71978]
[1745825175359,1.10608,1807.6,1807.5,40.8]
[1745825175759,1.10608,1807.6,1807.5,43.2423]
[1745825176461,2.71488,1807.6,1807.5,43.2423]
[1745825178055,2.71488,1807.6,1807.5,44.34844]
[1745825178963,5.14744,1807.7,1807.6,1.10608]
[1745825179165,5.14744,1807.7,1807.6,2.76958]
[1745825179363,5.14744,1807.7,1807.6,1.6635]
[1745825180066,1.10608,1807.6,1807.5,40.8]
[1745825180263,2.75048,1807.6,1807.5,41.90614]
[1745825180762,5.14746,1807.7,1807.5,41.90614]
[1745825180963,6.79186,1807.7,1807.6,2.76958]
[1745825181267,3.2078,1807.7,1807.6,2.76958]
[1745825181564,3.2078,1807.7,1807.6,4.40918]
[1745825182963,4.31382,1807.7,1807.6,3.3031]
[1745825183266,3.2078,1807.7,1807.6,3.3031]
[1745825183862,1.10601,1807.8,1807.6,3.3031]
[1745825184064,1.10601,1807.8,1807.7,1.7051]
[1745825185669,1.10601,1807.8,1807.7,2.81112]
[1745825186168,1.10601,1807.8,1807.7,1.7051]
[1745825187565,1.10601,1807.8,1807.7,2.81112]
[1745825187768,1.10601,1807.8,1807.7,1.7051]
[1745825188062,1.10601,1807.8,1807.7,2.81112]
[1745825188267,9.63693,1807.9,1807.7,2.81112]
[1745825188469,9.63693,1807.9,1807.8,1.6333]
[1745825189658,9.63693,1807.9,1807.8,2.73926]
[1745825191061,8.531,1807.9,1807.8,2.73926]
[1745825191367,9.6369,1807.9,1807.8,2.73926]
[1745825191767,8.531,1807.9,1807.8,2.73926]
[1745825192372,6.7868,1807.9,1807.8,2.73926]
[1745825193169,21.63006233,1808.9,1808.3,2.7641]
[1745825193468,18.42226233,1808.9,1808.8,1.10535]
[1745825193676,21.19505233,1808.9,1808.8,40.8]
[1745825193870,27.15530286,1808.9,1808.8,40.8]
[1745825194070,26.05001286,1808.9,1808.8,40.8]
[1745825194270,24.85201286,1808.9,1808.5,1.7387]
[1745825194473,5.3084,1808.8,1808.7,1.10537]
[1745825194667,6.0959,1808.8,1808.7,1.10537]
[1745825194873,3.578,1808.8,1808.7,41.90537]
[1745825195167,22.86996233,1808.9,1808.8,1.10535]
[1745825195373,24.60036233,1808.9,1808.7,44.602]
[1745825195576,22.86996233,1808.9,1808.8,1.10535]
[1745825196073,22.86996233,1808.9,1808.8,2.74935]
[1745825196276,4.01735234,1808.9,1808.8,10.95715]
[1745825196468,2.81909234,1808.9,1808.8,11.80615]
[1745825196862,1.59987234,1808.9,1808.8,11.80615]
[1745825197163,2.34e-06,1808.9,1808.8,15.60815]
[1745825197364,0.00551382,1809.0,1808.9,1.10529]
[1745825197570,0.00551382,1809.0,1808.9,3.57169]
[1745825197770,0.00551382,1809.0,1808.9,8.57169]
[1745825198076,0.00551382,1809.0,1808.9,12.37369]
[1745825198474,0.00551382,1809.0,1808.9,7.37369]
[1745825199466,0.00551382,1809.0,1808.9,6.56939]
[1745825201377,0.00551382,1809.0,1808.9,2.76739]
[1745825202772,0.00551382,1809.0,1808.9,1.10529]
[1745825202973,0.00551382,1809.0,1808.9,2.70429]
[1745825203976,0.00551382,1809.0,1808.9,1.10529]
[1745825204276,0.00551382,1809.0,1808.9,2.69289]
[1745825206179,0.00551382,1809.0,1808.9,6.49489]
[1745825210274,0.00551382,1809.0,1808.9,2.69289]
[1745825211075,0.00551382,1809.0,1808.9,6.49489]
[1745825212371,0.00551382,1809.0,1808.9,7.30129]
[1745825217983,0.00551382,1809.0,1808.9,4.90729]
[1745825218278,0.00551382,1809.0,1808.9,1.10529]
[1745825218580,0.87091382,1809.0,1808.9,1.10529]
[1745825218780,0.87091382,1809.0,1808.9,2.72619]
[1745825219682,1.68691382,1809.0,1808.9,1.10529]
[1745825219873,0.87091382,1809.0,1808.9,2.72619]
[1745825223581,0.00551382,1809.0,1808.9,2.72619]
[1745825224179,0.00551382,1809.0,1808.9,6.52819]
[1745825229281,0.00551382,1809.0,1808.9,4.90729]
[1745825229483,1.59001382,1809.0,1808.9,4.90729]
[1745825229681,11.36523382,1809.0,1808.9,3.802]
[1745825229877,13.46781382,1809.0,1808.5,3.2078]
[1745825230084,4.32272,1808.9,1808.8,1.10534]
[1745825230381,4.32272,1808.9,1808.8,41.90534]
[1745825230682,9.32272,1808.9,1808.8,41.90534]
[1745825230881,8.2174,1808.9,1808.8,41.90534]
[1745825231088,13.12469,1808.9,1808.8,41.90534]
[1745825231586,7.0194,1808.9,1808.8,41.90534]
[1745825232878,7.0194,1808.9,1808.8,43.57884]
[1745825233178,3.2174,1808.9,1808.8,43.57884]
[1745825234477,3.2174,1808.9,1808.8,41.90534]
[1745825235080,1.10538,1808.8,1808.7,1.10538]
[1745825235283,2.70968,1808.8,1808.6,3.2078]
[1745825235588,1.6043,1808.8,1808.7,41.90541]
[1745825235885,1.10535,1808.8,1808.7,41.90541]
[1745825236585,5.94604,1808.9,1808.7,41.90541]
[1745825236782,2.73824,1808.9,1808.8,1.10535]
[1745825236982,7.73824,1808.9,1808.7,41.9054]
[1745825237183,6.54024,1808.9,1808.7,41.9054]
[1745825237686,1.10535,1808.8,1808.7,40.8]
[1745825239281,2.73823,1808.9,1808.7,40.8]
[1745825239476,1.6329,1808.9,1808.7,40.8]
[1745825239684,2.73823,1808.9,1808.7,41.90538]
[1745825240185,6.54023,1808.9,1808.7,41.90538]
[1745825241385,6.54023,1808.9,1808.8,1.10535]
[1745825241584,1.10535,1808.8,1808.7,41.90539]
[1745825241892,6.54021,1808.9,1808.7,41.90536]
[1745825242184,2.73821,1808.9,1808.7,41.90536]
[1745825242379,1.10535,1808.8,1808.7,41.90536]
[1745825243684,1.10553,1808.5,1808.4,0.8329]
[1745825243886,3.67,1808.7,1808.4,1.93844]
[1745825244085,1.9048,1808.6,1808.5,1.10552]
[1745825244388,0.7993,1808.6,1808.5,1.10552]
[1745825244585,0.7993,1808.6,1808.5,2.71942]
[1745825245086,4.6013,1808.6,1808.5,2.71942]
[1745825245685,5.70677,1808.6,1808.5,2.71942]
[1745825245890,4.6013,1808.6,1808.5,2.71942]
[1745825246185,3.802,1808.6,1808.5,2.71942]
[1745825246792,3.802,1808.6,1808.5,43.51942]
[1745825247294,4.77542,1808.7,1808.6,1.10547]
[1745825247484,4.77542,1808.7,1808.6,2.81157]
[1745825247684,1.10547,1808.6,1808.5,44.602]
[1745825248394,1.10547,1808.6,1808.5,42.5061]
[1745825249292,1.10547,1808.6,1808.5,43.61163]
[1745825252498,2.72557,1808.6,1808.5,43.61163]
[1745825252799,1.10547,1808.6,1808.5,43.61163]
[1745825252998,4.77543,1808.7,1808.6,1.10547]
[1745825253190,4.77543,1808.7,1808.6,3.69097]
[1745825253391,4.77541,1808.7,1808.6,3.69097]
[1745825253594,3.67,1808.7,1808.6,3.69097]
[1745825254095,4.77541,1808.7,1808.6,3.69097]
[1745825254503,3.67,1808.7,1808.6,3.69097]
[1745825254806,4.77541,1808.7,1808.6,3.69097]
[1745825258002,4.77541,1808.7,1808.6,6.89877]
[1745825258404,3.67,1808.7,1808.6,6.89877]
[1745825258606,4.77541,1808.7,1808.6,6.89877]
[1745825262507,0.00551382,1809.0,1808.6,10.7933]
[1745825262805,4.74575382,1809.0,1808.9,1.10529]
[1745825263401,4.74575382,1809.0,1808.9,3.66589]
[1745825264108,8.54775382,1809.0,1808.9,3.66589]
[1745825264805,7.44251382,1809.0,1808.9,3.66589]
[1745825265310,3.64051382,1809.0,1808.9,3.66589]
[1745825265512,4.74573382,1809.0,1808.9,3.66589]
[1745825266107,8.54773382,1809.0,1808.9,3.66589]
[1745825267312,7.44251382,1809.0,1808.9,3.66589]
[1745825268111,0.00551382,1809.0,1808.9,3.66589]
[1745825269208,0.00551382,1809.0,1808.9,7.46789]
[1745825272106,0.00551382,1809.0,1808.9,3.66589]
[1745825272505,5.888,1810.1,1809.3,1.10504]
[1745825272705,3.2078,1809.6,1809.2,3.2078]
[1745825272910,3.30042815,1809.5,1809.3,1.6241]
[1745825273111,1.5966,1809.4,1809.3,2.72912]
[1745825275011,2.70158,1809.4,1809.3,2.72912]
[1745825275314,1.5966,1809.4,1809.3,2.72912]
[1745825275512,4.73887,1809.6,1809.5,1.10492]
[1745825275927,1.10492,1809.5,1809.4,2.81996]
[1745825276212,11.8418,1809.6,1808.7,3.2078]
[1745825276517,1.10513,1809.2,1809.0,1.10518]
[1745825276816,1.10513,1809.2,1808.9,1.6589]
[1745825277016,2.77693,1809.2,1809.0,1.10518]
[1745825277212,2.77693,1809.2,1809.1,1.10516]
[1745825277518,2.77693,1809.2,1809.0,1.10518]
[1745825277720,0.8433,1809.1,1809.0,1.10518]
[1745825278011,1.6718,1809.2,1809.0,1.10519]
[1745825278319,1.10516,1809.1,1808.9,4.8667]
[1745825278717,2.5151,1809.2,1808.9,5.16564]
[1745825278920,1.10522,1809.0,1808.9,5.16564]
[1745825279437,2.77701,1809.1,1809.0,1.10522]
[1745825279635,2.77701,1809.1,1808.9,4.0604]
[1745825279636,1.10522,1809.0,1808.9,5.16564]
[1745825279829,2.81752,1809.0,1808.9,5.16564]
[1745825280335,2.81752,1809.0,1808.9,5.16569]
[1745825282134,1.7123,1809.0,1808.9,5.16569]
[1745825282335,1.10521,1809.1,1809.0,1.10522]
[1745825282736,2.79981,1809.1,1808.9,5.16564]
[1745825282936,1.10522,1809.0,1808.9,5.16564]
[1745825283832,2.79978,1809.1,1809.0,1.10522]
[1745825284028,1.10522,1809.0,1808.9,4.31306]
[1745825284234,1.6946,1809.0,1808.9,3.2078]
[1745825284444,1.10532,1808.9,1808.7,5.16079]
[1745825284638,2.79995,1808.8,1808.7,4.0554]
[1745825284836,2.79995,1808.8,1808.7,4.31321]
[1745825285232,1.6946,1808.8,1808.7,3.2078]
[1745825285435,2.79995,1808.8,1808.7,3.2078]
[1745825286639,1.10535,1808.8,1808.7,3.2078]
[1745825286831,1.10535,1808.8,1808.7,4.31321]
[1745825287339,2.83845,1808.8,1808.7,3.2078]
[1745825288239,2.83845,1808.8,1808.7,4.31321]
[1745825289633,2.83845,1808.8,1808.7,3.2078]
[1745825290233,6.64045,1808.8,1808.7,3.2078]
[1745825291344,6.64045,1808.8,1808.7,4.7793]
[1745825291739,3.802,1808.8,1808.7,5.88471]
[1745825292137,1.10535,1808.8,1808.7,5.88471]
[1745825292742,1.10535,1808.8,1808.7,4.7793]
[1745825293543,1.10535,1808.8,1808.7,5.88471]
[1745825294043,1.10535,1808.8,1808.7,4.7793]
[1745825295142,2.84015,1808.8,1808.7,4.7793]
[1745825297147,6.64215,1808.8,1808.7,4.7793]
[1745825298640,3.802,1808.8,1808.7,5.88471]
[1745825298841,4.90735,1808.8,1808.7,5.88471]
[1745825299142,1.10535,1808.8,1808.7,5.88471]
[1745825299346,1.10535,1808.8,1808.7,4.7793]
[1745825300147,6.48195,1808.8,1808.7,4.7793]
[1745825301050,6.48195,1808.8,1808.7,1.5715]
[1745825301241,6.48195,1808.8,1808.7,2.67691]
[1745825301443,4.90735,1808.8,1808.7,1.5715]
[1745825302241,4.90735,1808.8,1808.7,2.67691]
[1745825302446,4.90735,1808.8,1808.7,1.5715]
[1745825302946,4.90735,1808.8,1808.7,2.67691]
[1745825303149,1.10535,1808.8,1808.7,2.67691]
[1745825306448,1.10532,1808.9,1808.8,1.10534]
[1745825306657,4.75528,1809.0,1808.9,1.10529]
[1745825307147,4.75528,1809.0,1808.9,1.6907]
[1745825307446,6.41438,1809.0,1808.9,1.6907]
[1745825308255,10.21638,1809.0,1808.9,1.6907]
[1745825312156,10.21638,1809.0,1808.9,2.79599]
[1745825312357,10.21638,1809.0,1808.9,1.6907]
[1745825314257,10.21638,1809.0,1808.9,2.79599]
[1745825314557,10.21638,1809.0,1808.9,1.6907]
[1745825316751,1.10529,1808.9,1808.8,1.6229]
[1745825316949,1.10535,1808.8,1808.7,4.31321]
[1745825317155,1.91985,1808.8,1808.7,4.31321]
[1745825317646,1.91985,1808.8,1808.7,4.7991]
[1745825317852,5.6232,1808.8,1808.5,44.0078]
[1745825318052,1.10547,1808.6,1808.5,45.5991]
[1745825318854,2.70637,1808.6,1808.5,46.70463]
[1745825320061,1.6009,1808.6,1808.5,46.70463]
[1745825320359,2.70637,1808.6,1808.5,46.70463]
[1745825320757,2.70637,1808.6,1808.5,45.5991]
[1745825321956,1.6009,1808.6,1808.5,46.70463]
[1745825322257,4.72547,1808.7,1808.5,46.70463]
[1745825322459,6.38147,1808.7,1808.6,1.6275]
[1745825323162,10.18347,1808.7,1808.6,1.6275]
[1745825327063,1.10547,1808.6,1808.5,44.0078]
[1745825327360,3.61517,1808.6,1808.5,44.0078]
[1745825327859,3.61517,1808.6,1808.5,45.5823]
[1745825328172,7.41717,1808.6,1808.5,45.5823]
[1745825329765,1.10559,1808.4,1808.3,1.639]
[1745825329961,5.7043,1808.5,1807.9,6.8278]
[1745825330162,1.10574,1808.2,1808.1,3.2078]
[1745825330464,1.10574,1808.2,1808.1,40.8]
[1745825330666,3.60224,1808.2,1808.1,40.8]
[1745825331064,2.4965,1808.2,1808.1,41.90577]
[1745825331267,7.40421,1808.2,1808.1,43.55217]
[1745825331462,7.40421,1808.2,1808.1,42.4464]
[1745825331763,3.802,1808.2,1808.1,42.4464]
[1745825331964,3.802,1808.2,1808.1,43.55217]
[1745825332166,3.64088,1808.3,1808.1,43.55217]
[1745825332363,3.64088,1808.3,1808.2,1.6107]
[1745825333263,7.44288,1808.3,1808.2,1.6107]
[1745825334570,1.10571,1808.2,1808.1,40.8]
[1745825334771,2.76931,1808.2,1808.1,40.8]
[1745825335267,6.57131,1808.2,1808.1,40.8]
[1745825335469,1.10584,1808.0,1807.9,2.70718]
[1745825335969,1.10584,1808.0,1807.9,42.4013]
[1745825336672,2.76944,1808.0,1807.9,42.4013]
[1745825336968,3.63734,1808.0,1807.9,42.4013]
[1745825337160,7.43934,1808.0,1807.9,42.4013]
[1745825338163,3.63734,1808.0,1807.9,42.4013]
[1745825339171,7.43934,1808.0,1807.9,42.4013]
[1745825339775,7.43934,1808.0,1807.9,40.8]
[1745825341066,1.10596,1807.8,1807.7,1.5704]
[1745825341266,1.10608,1807.6,1807.5,1.6373]
[1745825341468,1.10608,1807.6,1807.5,44.0186]
[1745825342476,3.603,1807.8,1807.5,44.0186]
[1745825342668,1.10602,1807.7,1807.6,4.7891]
[1745825342871,4.709,1807.8,1807.6,5.89515]
[1745825343168,4.70896,1807.8,1807.7,2.68732]
[1745825343374,4.70896,1807.8,1807.7,1.5813]
[1745825344968,4.70896,1807.8,1807.7,2.68732]
[1745825346876,1.1059,1808.0,1807.7,6.5813]
[1745825347074,1.1059,1808.0,1807.9,1.1059]
[1745825347471,1.1059,1808.0,1807.9,2.7311]
[1745825347672,1.1059,1808.0,1807.9,1.6252]
[1745825349274,4.9079,1808.0,1807.9,1.6252]
[1745825349871,3.802,1808.0,1807.9,2.7311]
[1745825350270,3.604,1808.1,1808.0,1.10584]
[1745825350574,3.604,1808.1,1808.0,2.78644]
[1745825350770,3.2078,1808.4,1808.0,9.8884]
[1745825350980,6.8118,1808.4,1808.3,1.10565]
[1745825351671,3.604,1808.4,1808.3,1.10565]
[1745825352070,3.604,1808.4,1808.3,2.78625]
[1745825354984,2.4999,1808.6,1808.5,1.10553]
[1745825355175,6.19446906,1808.6,1808.5,1.10553]
[1745825355376,7.29993906,1808.6,1808.5,1.10553]
[1745825355575,7.29993906,1808.6,1808.5,2.68863]
[1745825355876,7.29993823,1808.6,1808.5,2.68863]
[1745825356076,11.10193823,1808.6,1808.5,2.68863]
[1745825356886,9.99646823,1808.6,1808.5,2.68863]
[1745825357270,9.99646823,1808.6,1808.5,1.5831]
[1745825357476,11.10193791,1808.6,1808.5,1.5831]
[1745825358190,11.10193791,1808.6,1808.5,2.68863]
[1745825358481,9.41413791,1808.6,1808.5,1.5831]
[1745825358686,11.06153791,1808.6,1808.5,1.5831]
[1745825359179,11.06153791,1808.6,1808.4,1.91333]
[1745825359377,3.58173,1808.5,1808.4,1.91333]
[1745825359778,2.4762,1808.5,1808.4,0.8078]
[1745825360074,7.38373,1808.5,1808.4,1.10559]
[1745825360274,6.2782,1808.5,1808.3,1.6626]
[1745825360577,1.6572,1808.4,1808.3,2.76825]
[1745825363184,5.4592,1808.4,1808.3,2.76825]
[1745825363687,5.4592,1808.4,1808.3,1.6626]
[1745825363985,5.4592,1808.4,1808.3,2.76825]
[1745825364379,3.802,1808.4,1808.3,2.76825]
[1745825365087,3.58296,1808.5,1808.3,2.76825]
[1745825365286,3.58296,1808.5,1808.4,1.6791]
[1745825365482,1.10571,1808.2,1808.1,0.8477]
[1745825365679,1.10571,1808.2,1808.1,2.5268]
[1745825365881,1.1057,1808.3,1808.1,3.63257]
[1745825366085,1.1057,1808.3,1808.2,2.5402]
[1745825366786,1.10565,1808.3,1808.2,2.5402]
[1745825368085,4.90765,1808.3,1808.2,2.5402]
[1745825368680,5.73315,1808.3,1808.2,2.5402]
[1745825369085,1.93115,1808.3,1808.2,2.5402]
[1745825369985,1.93115,1808.3,1808.2,1.6791]
[1745825370485,1.10571,1808.2,1808.1,0.8477]
[1745825370685,1.10571,1808.2,1808.0,3.2078]
[1745825370686,1.10577,1808.1,1808.0,4.8801]
[1745825371085,1.10577,1808.1,1808.0,5.98594]
[1745825371487,1.10577,1808.1,1808.0,4.8801]
[1745825371991,1.10577,1808.1,1808.0,1.6723]
[1745825372292,2.76207,1808.1,1808.0,1.6723]
[1745825372991,1.10584,1808.0,1807.8,4.31372]
[1745825373198,2.4754,1808.0,1807.9,1.1059]
[1745825373395,1.10584,1808.0,1807.9,2.7389]
[1745825373691,1.10584,1808.0,1807.9,4.424]
[1745825374891,1.10584,1808.0,1807.9,3.3181]
[1745825375391,1.10584,1808.0,1807.9,4.424]
[1745825376786,3.592,1808.3,1807.9,3.3181]
[1745825376986,5.53464,1808.4,1808.0,7.68006]
[1745825377190,1.10567,1808.3,1808.2,1.10569]
[1745825377393,5.53464,1808.4,1808.3,1.10565]
[1745825377692,5.53464,1808.4,1808.3,1.5793]
[1745825378693,7.25424,1808.4,1808.3,1.5793]
[1745825379492,7.25419,1808.4,1808.3,1.5793]
[1745825379990,7.25419,1808.4,1808.3,2.68495]
[1745825380189,11.05619,1808.4,1808.3,2.68495]
[1745825381192,7.25419,1808.4,1808.3,2.68495]
[1745825381792,7.25419,1808.4,1808.3,1.5793]
[1745825381988,6.1486,1808.4,1808.3,2.68495]
[1745825382295,7.25419,1808.4,1808.3,2.68495]
[1745825382589,6.1486,1808.4,1808.3,2.68495]
[1745825383594,3.592,1808.4,1808.3,2.68495]
[1745825392095,3.592,1808.4,1808.3,3.51505]
[1745825393095,8.2149,1808.4,1808.3,2.68495]
[1745825393294,9.7908,1808.4,1808.3,2.68495]
[1745825394202,5.9888,1808.4,1808.3,2.68495]
[1745825398501,5.9888,1808.4,1808.3,1.10565]
[1745825400108,5.9888,1808.4,1808.3,2.76165]
[1745825400303,5.9888,1808.4,1808.0,4.079]
[1745825400505,1.10577,1808.1,1808.0,2.76181]
[1745825400707,1.10576,1808.2,1808.0,1.10581]
[1745825400906,1.10586,1808.0,1807.9,1.10589]
[1745825401109,5.53672,1808.1,1807.9,1.10589]
[1745825401308,2.5523,1808.0,1807.9,1.10589]
[1745825401608,2.5523,1808.0,1807.9,2.76189]
[1745825402207,6.3543,1808.0,1807.9,2.76189]
[1745825402708,7.46014,1808.0,1807.9,2.76189]
[1745825402909,7.46014,1808.0,1807.9,1.10589]
[1745825403217,6.3543,1808.0,1807.8,1.10592]
[1745825403407,1.10603,1807.7,1807.6,1.10607]
[1745825403608,4.688,1807.8,1807.6,1.10607]
[1745825403904,7.1998,1807.8,1807.6,1.10607]
[1745825404105,2.5277,1807.7,1807.6,1.10607]
[1745825404908,2.5277,1807.7,1807.5,2.80761]
[1745825405408,2.5277,1807.7,1807.6,1.5803]
[1745825405805,3.63372,1807.7,1807.6,1.5803]
[1745825406313,1.10614,1807.5,1807.4,3.2078]
[1745825406612,1.10614,1807.5,1807.4,1.5803]
[1745825406805,4.68814,1807.5,1807.4,1.5803]
[1745825407006,3.582,1807.5,1807.4,1.5803]
[1745825407199,0.8091,1807.7,1807.4,9.7881]
[1745825407412,2.75826,1807.8,1807.6,1.10606]
[1745825407711,2.75826,1807.8,1807.7,1.5803]
[1745825408107,4.35886,1807.8,1807.7,1.5803]
[1745825408503,1.10592,1807.9,1807.7,1.5803]
[1745825408709,4.68889,1808.0,1807.8,1.90574]
[1745825408915,4.68889,1808.0,1807.9,1.7165]
[1745825409212,4.68889,1808.0,1807.9,2.5495]
[1745825409704,6.28949,1808.0,1807.9,2.5495]
[1745825409901,6.28949,1808.0,1807.9,1.7165]
[1745825410106,5.1836,1808.0,1807.6,4.31385]
[1745825410302,1.10596,1807.8,1807.7,1.7165]
[1745825411012,1.10596,1807.8,1807.7,2.82252]
[1745825412415,4.37485,1807.9,1807.7,2.82252]
[1745825412615,4.37485,1807.9,1807.8,1.576]
[1745825413619,4.37485,1807.9,1807.8,2.3844]
[1745825414216,1.10595,1807.9,1807.8,3.49036]
[1745825414518,1.10595,1807.9,1807.8,2.3844]
[1745825415015,1.10595,1807.9,1807.8,3.2125]
[1745825416411,4.68888,1808.0,1807.9,1.1059]
[1745825416713,4.68888,1808.0,1807.9,1.6261]
[1745825416916,3.583,1808.0,1807.9,2.732]
[1745825417118,4.68884,1808.0,1807.9,2.732]
[1745825417320,4.68884,1808.0,1807.9,1.6261]
[1745825418420,3.583,1808.0,1807.9,2.732]
[1745825419120,4.68884,1808.0,1807.9,2.732]
[1745825419716,4.68884,1808.0,1807.9,1.6261]
[1745825420121,3.583,1808.0,1807.9,2.732]
[1745825421914,1.10572,1808.2,1808.1,1.10571]
[1745825422519,6.9635,1808.3,1808.1,1.10571]
[1745825422724,5.3082,1808.3,1808.2,2.84391]
[1745825423222,3.583,1808.3,1808.2,2.84391]
[1745825424116,4.425,1808.5,1808.4,1.10559]
[1745825424422,3.583,1808.5,1808.4,1.10559]
[1745825425016,3.583,1808.5,1808.4,1.92389]
[1745825425218,3.583,1808.5,1808.4,2.79349]
[1745825425523,3.583,1808.5,1808.4,43.59349]
[1745825426813,3.583,1808.5,1808.4,45.19519]
[1745825429816,7.17065,1808.8,1808.7,1.10541]
[1745825430222,10.97265,1808.8,1808.7,1.10541]
[1745825430826,11.0632078,1808.8,1808.7,1.10541]
[1745825431024,9.8673,1808.8,1808.7,1.10541]
[1745825434126,8.1802,1808.8,1808.7,1.91561]
[1745825434824,7.384,1808.8,1808.7,1.91561]
[1745825435025,7.384,1808.8,1808.7,2.78751]
[1745825435329,3.582,1808.8,1808.7,2.78751]
[1745825435626,4.4259,1808.8,1808.7,2.78751]
[1745825435927,6.1395,1808.8,1808.7,2.78751]
[1745825437322,6.1395,1808.8,1808.7,1.97731]
[1745825438020,6.1395,1808.8,1808.7,3.55551]
[1745825438428,4.4259,1808.8,1808.7,3.55551]
[1745825439325,4.4259,1808.8,1808.7,6.76331]
[1745825439521,6.1354,1808.8,1808.7,6.76331]
[1745825440722,3.582,1808.8,1808.7,6.76331]
[1745825441029,3.582,1808.8,1808.7,47.56331]
[1745825443623,5.1778,1808.8,1808.7,45.11321]
[1745825444226,8.9798,1808.8,1808.7,45.11321]
[1745825444733,8.9798,1808.8,1808.6,1.10545]
[1745825444936,1.10548,1808.6,1808.3,3.2078]
[1745825445236,3.2867,1808.5,1808.4,41.90559]
[1745825446234,7.0887,1808.5,1808.4,41.90559]
[1745825447135,3.2867,1808.5,1808.4,43.63019]
[1745825447335,1.10541,1808.7,1808.6,1.10542]
[1745825447538,3.69491,1808.7,1808.6,1.10542]
[1745825447838,3.69491,1808.7,1808.5,4.9324]
[1745825448040,3.802,1808.9,1808.5,4.9324]
[1745825448339,7.27562,1809.2,1808.9,1.10524]
[1745825448534,2.5586,1809.1,1808.9,1.10524]
[1745825448841,2.5586,1809.1,1809.0,1.10522]
[1745825449140,6.3606,1809.1,1809.0,1.10522]
[1745825449338,6.3606,1809.1,1809.0,1.92062]
[1745825449529,6.3606,1809.1,1809.0,3.64522]
[1745825450246,2.5586,1809.1,1809.0,1.10522]
[1745825450436,2.5586,1809.1,1809.0,2.83052]
[1745825450831,3.66376,1809.1,1809.0,1.7253]
[1745825451033,1.10522,1809.0,1808.8,1.7253]
[1745825451239,0.8622,1808.9,1808.8,1.7253]
[1745825451439,0.8622,1808.9,1808.8,2.83065]
[1745825451639,2.4464,1808.9,1808.8,2.83065]
[1745825452240,2.4464,1808.9,1808.8,6.03845]
[1745825453349,3.55169,1808.9,1808.8,4.9331]
[1745825453539,1.10537,1808.8,1808.5,1.5932]
[1745825453740,1.6271,1808.7,1808.6,1.10543]
[1745825453941,1.6271,1808.7,1808.6,2.69863]
[1745825454141,0.8518,1808.8,1808.7,1.10541]
[1745825454336,0.8518,1808.8,1808.7,2.69861]
[1745825455549,4.4432,1808.9,1808.8,1.10535]
[1745825455761,3.581,1808.9,1808.8,3.50545]
[1745825456955,2.75973,1809.0,1808.9,1.10529]
[1745825457159,2.75973,1809.0,1808.9,2.80219]
[1745825457361,2.75973,1809.0,1808.9,1.6969]
[1745825457561,2.75973,1809.0,1808.9,2.80219]
[1745825458259,6.56173,1809.0,1808.9,2.80219]
[1745825458867,5.4565,1809.0,1808.9,1.6969]
[1745825459561,5.4565,1809.0,1808.9,2.80219]
[1745825459862,5.4565,1809.0,1808.9,1.6969]
[1745825460061,5.4565,1809.0,1808.8,0.8069]
[1745825460560,1.706,1808.9,1808.7,2.81069]
[1745825460761,0.8424,1808.8,1808.7,2.81069]
[1745825461064,1.647,1808.8,1808.7,2.81069]
[1745825461265,3.353,1808.8,1808.7,2.81069]
[1745825461763,3.353,1808.8,1808.6,3.2078]
[1745825462061,1.706,1808.7,1808.6,4.31325]
[1745825462364,1.706,1808.7,1808.6,6.01855]
[1745825467569,2.81141,1808.7,1808.6,4.9131]
[1745825467762,2.81141,1808.7,1808.6,1.7053]
[1745825468271,1.79656219,1808.7,1808.4,41.6242]
[1745825468472,1.10553,1808.5,1808.4,43.268]
[1745825468768,1.10553,1808.5,1808.4,42.4438]
[1745825468969,2.82103,1808.5,1808.4,42.4438]
[1745825469171,8.22033,1808.5,1808.4,40.8]
[1745825470274,4.41833,1808.5,1808.4,40.8]
[1745825470876,4.41833,1808.5,1808.4,42.4438]
[1745825471375,1.96283,1808.5,1808.4,43.54939]
[1745825471576,5.76483,1808.5,1808.4,44.36339]
[1745825472072,3.802,1808.5,1808.4,44.36339]